fUSD/lending_fUSD_20250828
["ID","MTS","AMOUNT","RATE_DAILY","PERIOD"]
[381855253,1756371059215,-570.7453346,0.00033249,30]
[381855255,1756371059224,-570.7453346,0.00033249,30]
[381855257,1756371059233,-570.7453346,0.00033249,30]
[381855259,1756371059242,-570.7453346,0.00033249,30]
[381855261,1756371059251,-570.7453346,0.00033249,30]
[381855263,1756371059260,-570.7453346,0.00033249,30]
[381855265,1756371059269,-570.7453346,0.00033249,30]
[381855267,1756371059278,-570.7453346,0.00033249,30]
[381855269,1756371059287,-570.7453346,0.00033249,30]
[381855271,1756371059296,-570.7453346,0.00033249,30]
[381855273,1756371059305,-570.7453346,0.00033249,30]
[381855275,1756371059315,-570.7453346,0.00033249,30]
[381855276,1756371059324,-570.7453346,0.00033249,30]
[381855278,1756371059333,-570.7453346,0.00033249,30]
[381855280,1756371059342,-570.7453346,0.00033249,30]
[381855282,1756371059351,-570.7453346,0.00033249,30]
[381855284,1756371059360,-570.7453346,0.00033249,30]
[381855286,1756371059369,-570.7453346,0.00033249,30]
[381855288,1756371059378,-570.7453346,0.00033249,30]
[381855290,1756371059387,-623.58710448,0.00033254,30]
[381855292,1756371059397,-1000.0,0.00033254,30]
[381855294,1756371059406,-151.0,0.00033254,30]
[381855296,1756371059415,-300.0,0.00033254,30]
[381855298,1756371059424,-300.0,0.00033254,30]
[381855300,1756371059434,-1000.0,0.00033254,30]
[381855302,1756371059443,-160.0,0.00033254,30]
[381855304,1756371059453,-151.0,0.00033254,30]
[381855305,1756371059461,-1000.0,0.00033254,30]
[381855306,1756371059470,-2264.10087164,0.00033254,30]
[381855307,1756371059479,-239.84119403,0.00033254,30]
[381855308,1756371059488,-250.0,0.00033254,30]
[381855309,1756371059497,-300.0,0.00033254,30]
[381855310,1756371059507,-151.0,0.00033254,30]
[381855311,1756371059516,-8988.56728329,0.00033261,20]
[381855312,1756371059525,-214.58883188,0.00033261,2]
[381855313,1756371059534,-300.0,0.0003327,2]
[381855314,1756371059543,-700.0,0.0003327,2]
[381855315,1756371059551,-1425.0,0.00033278,2]
[381855316,1756371059561,-151.22805893,0.00033288,2]
[381855317,1756371059573,-500.0,0.000333,15]
[381855318,1756371059582,-250.0,0.000333,14]
[381855319,1756371059591,-250.0,0.000333,14]
[381855320,1756371059600,-250.0,0.000333,14]
[381855321,1756371059612,-250.0,0.000333,14]
[381855322,1756371059620,-250.0,0.000333,14]
[381855323,1756371059629,-250.0,0.000333,14]
[381855324,1756371059639,-250.0,0.000333,14]
[381855325,1756371059648,-250.0,0.000333,14]
[381855326,1756371059657,-250.0,0.000333,14]
[381855327,1756371059666,-250.0,0.000333,14]
[381855328,1756371059675,-250.0,0.000333,14]
[381855329,1756371059685,-250.0,0.000333,14]
[381855330,1756371059694,-250.0,0.000333,14]
[381855331,1756371059703,-250.0,0.000333,14]
[381855332,1756371059713,-250.0,0.000333,14]
[381855333,1756371059721,-250.0,0.000333,14]
[381855334,1756371059731,-250.0,0.000333,14]
[381855335,1756371059741,-250.0,0.000333,14]
[381855336,1756371059750,-250.0,0.000333,14]
[381855337,1756371059760,-250.0,0.000333,14]
[381855338,1756371059769,-250.0,0.000333,14]
[381855339,1756371059778,-250.0,0.000333,14]
[381855341,1756371059787,-250.0,0.000333,14]
[381855343,1756371059796,-250.0,0.000333,14]
[381855345,1756371059805,-250.0,0.000333,14]
[381855346,1756371059814,-250.0,0.000333,14]
[381855347,1756371059823,-177.4,0.000333,14]
[381855348,1756371059832,-213.59,0.000333,2]
[381855349,1756371059841,-300.0,0.000333,8]
[381855350,1756371059850,-300.0,0.000333,8]
[381855351,1756371059859,-300.0,0.000333,8]
[381855352,1756371059869,-250.0,0.000333,14]
[381855353,1756371059878,-250.0,0.000333,14]
[381855354,1756371059887,-253.2,0.000333,14]
[381855355,1756371059897,-393.0,0.000333,2]
[381855356,1756371059906,-165.7,0.000333,28]
[381855357,1756371059915,-200.0,0.000333,8]
[381855358,1756371059925,-971.03,0.00033313,2]
[381855359,1756371059936,-469.47,0.00033313,2]
[381855360,1756371059946,-150.0,0.00033318,120]
[381855361,1756371059955,-1425.0,0.00033318,2]
[381855362,1756371059965,-331.26646055,0.00033336,2]
[381855363,1756371059974,-1139.4719214,0.00033337,2]
[381855364,1756371059983,-91000.0000002,0.00033345,2]
[381855365,1756371059992,-154656.36234587,0.00033349,2]
[381855366,1756371060001,-673.0,0.0003335,120]
[381855367,1756371060010,-497.0,0.0003335,120]
[381855368,1756371060020,-210.0,0.0003336,30]
[381855369,1756371060029,-210.0,0.0003336,2]
[381855370,1756371060038,-213.0,0.0003336,2]
[381855371,1756371060047,-204.0,0.0003336,30]
[381855372,1756371060056,-210.0,0.0003336,2]
[381855373,1756371060066,-520.0,0.00033361,30]
[381855374,1756371060077,-200.0,0.00033361,30]
[381855375,1756371060086,-300.0,0.00033361,30]
[381855376,1756371060096,-600.0,0.00033361,30]
[381855377,1756371060105,-151.0,0.00033361,30]
[381855378,1756371060115,-600.0,0.00033361,30]
[381855379,1756371060124,-300.0,0.00033361,31]
[381855380,1756371060134,-1000.0,0.00033361,30]
[381855381,1756371060143,-600.0,0.00033361,30]
[381855382,1756371060153,-539.24,0.00033361,31]
[381855383,1756371060163,-151.0,0.00033361,30]
[381855384,1756371060174,-600.0,0.00033361,31]
[381855385,1756371060184,-300.0,0.00033361,32]
[381855386,1756371060193,-1000.0,0.00033361,31]
[381855387,1756371060203,-559.19188,0.00033361,32]
[381855388,1756371060213,-600.0,0.00033361,30]
[381855389,1756371060223,-151.0,0.00033361,30]
[381855390,1756371060233,-300.0,0.00033361,30]
[381855391,1756371060242,-600.0,0.00033361,32]
[381855392,1756371060252,-1000.0,0.00033361,32]
[381855393,1756371060261,-579.88197956,0.00033361,33]
[381855394,1756371060270,-300.0,0.00033361,33]
[381855395,1756371060279,-600.0,0.00033361,30]
[381855396,1756371060288,-151.0,0.00033361,30]
[381855397,1756371060297,-151.0,0.00033361,30]
[381855398,1756371060306,-300.0,0.00033361,30]
[381855399,1756371060316,-300.0,0.00033361,31]
[381855400,1756371060325,-600.0,0.00033361,33]
[381855401,1756371060335,-601.3376128,0.00033361,34]
[381855402,1756371060345,-400.000001,0.00033361,34]
[381855403,1756371060355,-151.0,0.00033361,30]
[381855404,1756371060365,-151.0,0.00033361,31]
[381855405,1756371060374,-1000.0,0.00033361,33]
[381855406,1756371060383,-300.0,0.00033361,32]
[381855407,1756371060393,-300.0,0.00033361,31]
[381855408,1756371060403,-600.0,0.00033361,34]
[381855409,1756371060412,-600.0,0.00033361,30]
[381855410,1756371060422,-151.0,0.00033361,32]
[381855411,1756371060432,-151.0,0.00033361,30]
[381855412,1756371060443,-1000.0,0.00033361,34]
[381855413,1756371060453,-300.0,0.00033361,32]
[381855414,1756371060462,-151.0,0.00033361,30]
[381855415,1756371060472,-600.0,0.00033361,30]
[381855416,1756371060482,-151.0,0.00033361,33]
[381855417,1756371060491,-151.0,0.00033361,30]
[381855418,1756371060500,-300.0,0.00033361,33]
[381855420,1756371060510,-300.0,0.00033361,33]
[381855421,1756371060519,-250.88432063,0.00033361,31]
[381855422,1756371060529,-151.0,0.00033361,34]
[381855423,1756371060539,-600.0,0.00033361,30]
[381855424,1756371060549,-151.0,0.00033361,30]
[381855425,1756371060559,-300.0,0.00033361,34]
[381855426,1756371060572,-300.0,0.00033361,34]
[381855427,1756371060582,-600.0,0.00033361,30]
[381855428,1756371060591,-151.0,0.00033361,30]
[381855429,1756371060601,-600.0,0.00033361,30]
[381855430,1756371060611,-1000.0,0.00033361,30]
[381855431,1756371060620,-160.0,0.00033361,30]
[381855432,1756371060630,-600.0,0.00033361,30]
[381855433,1756371060641,-151.0,0.00033361,30]
[381855434,1756371060651,-151.0,0.00033361,30]
[381855435,1756371060661,-1000.0,0.00033361,31]
[381855436,1756371060671,-160.0,0.00033361,31]
[381855437,1756371060681,-151.0,0.00033361,30]
[381855438,1756371060692,-151.0,0.00033361,31]
[381855439,1756371060702,-151.0,0.00033361,32]
[381855440,1756371060712,-160.0,0.00033361,32]
[381855441,1756371060722,-1000.0,0.00033361,32]
[381855442,1756371060732,-151.0,0.00033361,30]
[381855443,1756371060742,-151.0,0.00033361,33]
[381855444,1756371060752,-151.0,0.00033361,30]
[381855445,1756371060761,-160.0,0.00033361,33]
[381855446,1756371060771,-151.0,0.00033361,30]
[381855447,1756371060780,-1000.0,0.00033361,33]
[381855448,1756371060791,-151.0,0.00033361,31]
[381855449,1756371060800,-160.0,0.00033361,34]
[381855450,1756371060811,-1000.0,0.00033361,34]
[381855451,1756371060820,-151.0,0.00033361,30]
[381855452,1756371060829,-151.0,0.00033361,34]
[381855453,1756371060839,-151.0,0.00033361,32]
[381855454,1756371060848,-1000.0,0.00033361,30]
[381855455,1756371060858,-151.0,0.00033361,33]
[381855456,1756371060869,-151.0,0.00033361,30]
[381855457,1756371060878,-151.0,0.00033361,34]
[381855458,1756371060888,-151.0,0.00033361,30]
[381855459,1756371060897,-1000.0,0.00033361,31]
[381855460,1756371060907,-500.0,0.00033361,30]
[381855461,1756371060917,-500.0,0.00033361,30]
[381855462,1756371060927,-151.0,0.00033361,30]
[381855463,1756371060938,-1000.0,0.00033361,32]
[381855464,1756371060948,-500.0,0.00033361,31]
[381855465,1756371060958,-500.0,0.00033361,31]
[381855466,1756371060968,-151.0,0.00033361,30]
[381855467,1756371060978,-1000.0,0.00033361,33]
[381855469,1756371060987,-500.0,0.00033361,32]
[381855470,1756371060997,-500.0,0.00033361,32]
[381855471,1756371061007,-151.0,0.00033361,30]
[381855473,1756371061016,-1000.0,0.00033361,34]
[381855474,1756371061026,-500.0,0.00033361,33]
[381855475,1756371061035,-500.0,0.00033361,33]
[381855476,1756371061044,-151.0,0.00033361,30]
[381855477,1756371061054,-500.0,0.00033361,34]
[381855478,1756371061063,-500.0,0.00033361,34]
[381855479,1756371061073,-151.0,0.00033361,30]
[381855480,1756371061083,-1888.0,0.00033361,30]
[381855481,1756371061092,-151.0,0.00033361,31]
[381855482,1756371061102,-151.0,0.00033361,32]
[381855483,1756371061112,-1957.856,0.00033361,31]
[381855484,1756371061122,-2030.296672,0.00033361,32]
[381855485,1756371061131,-200.0,0.00033361,30]
[381855486,1756371061141,-2105.41764886,0.00033361,33]
[381855487,1756371061151,-207.4,0.00033361,31]
[381855488,1756371061161,-2183.31810187,0.00033361,34]
[381855489,1756371061170,-215.0738,0.00033361,32]
[381855490,1756371061181,-250.0,0.00033361,30]
[381855491,1756371061191,-223.0315306,0.00033361,33]
[381855492,1756371061201,-250.0,0.00033361,31]
[381855493,1756371061211,-231.28369723,0.00033361,34]
[381855494,1756371061220,-250.0,0.00033361,32]
[381855495,1756371061229,-300.0,0.00033361,30]
[381855496,1756371061239,-250.0,0.00033361,33]
[381855497,1756371061248,-151.0,0.00033361,30]
[381855498,1756371061259,-300.0,0.00033361,31]
[381855499,1756371061268,-250.0,0.00033361,34]
[381855500,1756371061277,-151.67030714,0.00033361,31]
[381855501,1756371061286,-300.0,0.00033361,32]
[381855502,1756371061297,-300.0,0.00033361,33]
[381855503,1756371061306,-300.0,0.00033361,34]
[381855504,1756371061317,-151.0,0.00033361,30]
[381855505,1756371061326,-151.0,0.00033361,31]
[381855506,1756371061336,-151.0,0.00033361,32]
[381855507,1756371061346,-151.0,0.00033361,33]
[381855508,1756371061356,-317.78733689,0.00033361,30]
[381855509,1756371061366,-151.0,0.00033361,34]
[381855511,1756371061375,-1086.0,0.00033362,5]
[381855512,1756371061385,-150.0,0.00033362,2]
[381855513,1756371061394,-510.84149308,0.00033362,2]
[381855514,1756371061404,-183.37976767,0.00033362,2]
[381855515,1756371061413,-150.0,0.00033362,2]
[381855516,1756371061423,-1300.37847016,0.00033362,2]
[381855517,1756371061432,-150.0,0.00033362,2]
[381855518,1756371061442,-2022.04343075,0.00033362,2]
[381855520,1756371061452,-150.0,0.00033362,2]
[381855521,1756371061461,-1584.42034418,0.00033362,2]
[381855522,1756371061471,-1086.0,0.00033362,5]
[381855523,1756371061481,-150.0,0.00033362,30]
[381855524,1756371061490,-150.0,0.00033362,30]
[381855525,1756371061499,-300.0,0.0003337,2]
[381855526,1756371061508,-700.0,0.0003337,2]
[381855527,1756371061518,-150.0,0.00033381,120]
[381855528,1756371061528,-150.0,0.00033426,120]
[381855529,1756371061537,-150.0,0.00033462,120]
[381855530,1756371061547,-20211.1326155,0.0003347,2]
[381855531,1756371061557,-1184.44997401,0.000335,2]
[381855532,1756371061570,-150.0,0.00033524,120]
[381855533,1756371061580,-162.97116817,0.00033539,5]
[381855534,1756371061589,-1255.8,0.00033541,30]
[381855535,1756371061601,-570.74,0.00033541,30]
[381855536,1756371061611,-20000.0,0.00033541,2]
[381855537,1756371061620,-637.58712648,0.00033541,2]
[381855538,1756371061630,-1802.45114882,0.00033541,2]
[381855539,1756371061640,-539.77777207,0.00033541,15]
[381855540,1756371061651,-755.97605469,0.00033541,2]
[381855541,1756371061663,-209.23523988,0.00033541,2]
[381855542,1756371061672,-3021.21,0.00033566,120]
[381855543,1756371061681,-150.0,0.0003358,30]
[381855544,1756371061692,-150.0,0.0003358,30]
[381855545,1756371061702,-150.0,0.00033582,120]
[381855546,1756371061712,-1122.72,0.0003359,20]
[381855547,1756371061721,-2000.0,0.00033596,2]
[381855548,1756371061730,-150.0,0.00033605,120]
[381855549,1756371061740,-1139.4719214,0.00033616,2]
[381855550,1756371061749,-303.67965703,0.00033631,2]
[381855551,1756371061759,-152.0,0.00033631,4]
[381855552,1756371061768,-900.0,0.00033636,7]
[381855553,1756371061778,-50000.0,0.0003364,30]
[381855554,1756371061788,-50000.0,0.0003364,31]
[381855555,1756371061798,-50000.0,0.0003364,32]
[381855556,1756371061808,-50000.0,0.0003364,33]
[381855557,1756371061818,-50000.0,0.0003364,34]
[381855558,1756371061827,-50000.0,0.0003364,35]
[381855559,1756371061838,-150.0,0.0003364,120]
[381855560,1756371061847,-15230.14173073,0.0003364,2]
[381855561,1756371061858,-50000.0,0.00033641,35]
[381855562,1756371061868,-50000.0,0.00033641,36]
[381855563,1756371061878,-50000.0,0.00033641,37]
[381855564,1756371061887,-50000.0,0.00033641,38]
[381855565,1756371061897,-50000.0,0.00033641,39]
[381855566,1756371061906,-14378.86743807,0.00033641,120]
[381855567,1756371061916,-591.50952061,0.00033641,120]
[381855568,1756371061926,-31718.9393969,0.00033641,10]
[381855569,1756371061937,-5176.0,0.00033641,30]
[381855570,1756371061946,-1071.0,0.00033641,120]
[381855571,1756371061956,-1000.0,0.00033641,120]
[381855573,1756371061965,-1000.0,0.00033641,120]
[381855574,1756371061975,-1000.0,0.00033641,120]
[381855575,1756371061984,-1000.0,0.00033641,120]
[381855576,1756371061994,-1000.0,0.00033641,120]
[381855577,1756371062004,-156.26372254,0.00033641,2]
[381855578,1756371062013,-733.99170486,0.00033641,120]
[381855579,1756371062023,-940243.99446968,0.00033641,120]
[381855580,1756371062033,-24475.5,0.00033641,10]
[381855581,1756371062043,-1109.72649623,0.00033641,120]
[381855582,1756371062052,-400.0,0.00033641,120]
[381855583,1756371062062,-400.0,0.00033641,120]
[381855584,1756371062072,-400.0,0.00033641,120]
[381855585,1756371062082,-5365.0,0.00033641,60]
[381855586,1756371062091,-5365.0,0.00033641,60]
[381855587,1756371062101,-5365.0,0.00033641,60]
[381855588,1756371062111,-5365.0,0.00033641,60]
[381855589,1756371062121,-5365.0,0.00033641,60]
[381855590,1756371062131,-5365.0,0.00033641,60]
[381855591,1756371062141,-5365.0,0.00033641,60]
[381855593,1756371062150,-508503.16859531,0.00033641,60]
[381855594,1756371062160,-32301.7503926,0.00033641,30]
[381855595,1756371062170,-400.47407955,0.00033641,120]
[381855596,1756371062179,-1500.0,0.00033641,120]
[381855597,1756371062190,-400.0,0.00033641,120]
[381855598,1756371062199,-400.0,0.00033641,120]
[381855599,1756371062210,-400.0,0.00033641,120]
[381855600,1756371062219,-160.0,0.00033641,5]
[381855601,1756371062229,-845435.38,0.00033641,60]
[381855602,1756371062238,-1000.0,0.00033641,30]
[381855603,1756371062248,-1000.87790267,0.00033641,2]
[381855604,1756371062257,-233.0,0.00033641,120]
[381855605,1756371062267,-157.0,0.00033641,60]
[381855606,1756371062277,-500.0,0.00033641,120]
[381855607,1756371062287,-291.16918726,0.00033641,120]
[381855608,1756371062296,-294.80059717,0.00033641,60]
[381855609,1756371062306,-2916.28984967,0.00033641,30]
[381855610,1756371062315,-283.39544909,0.00033641,120]
[381855611,1756371062325,-158.68675055,0.00033641,60]
[381855612,1756371062334,-317.53714756,0.00033641,30]
[381855613,1756371062345,-822.66569368,0.00033641,30]
[381855614,1756371062355,-40208.53433497,0.00033641,10]
[381855615,1756371062365,-161.71290105,0.00033641,120]
[381855616,1756371062375,-1248.89865353,0.00033641,120]
[381855617,1756371062385,-173.59632973,0.00033641,2]
[381855618,1756371062395,-1322.50383632,0.00033641,120]
[381855619,1756371062405,-150.08799413,0.00033641,30]
[381855620,1756371062415,-160.24770975,0.00033641,30]
[381855621,1756371062424,-592.55459928,0.00033641,30]
[381855622,1756371062434,-162.0,0.00033641,120]
[381855623,1756371062443,-1031.35442876,0.00033641,120]
[381855624,1756371062453,-258.0,0.00033641,30]
[381855625,1756371062462,-100000.0,0.00033641,30]
[381855626,1756371062472,-500.0,0.00033641,31]
[381855627,1756371062482,-1126.0,0.00033641,30]
[381855628,1756371062491,-2971.51,0.00033641,31]
[381855629,1756371062501,-36456.9,0.00033641,60]
[381855630,1756371062511,-709.1766672,0.00033641,120]
[381855631,1756371062521,-458549.42155793,0.00033641,30]
[381855632,1756371062530,-12578.05,0.00033641,30]
[381855633,1756371062540,-220.17,0.00033641,30]
[381855634,1756371062550,-2850.0,0.00033641,120]
[381855635,1756371062560,-3000.0,0.00033641,120]
[381855636,1756371062569,-1123.92488822,0.00033641,2]
[381855637,1756371062581,-109079.7486951,0.00033641,120]
[381855638,1756371062592,-350.0,0.00033641,31]
[381855639,1756371062602,-5100.0,0.00033641,35]
[381855640,1756371062612,-18679.88242562,0.00033641,120]
[381855641,1756371062623,-127840.66,0.00033641,60]
[381855642,1756371062634,-21308.48240383,0.00033641,60]
[381855643,1756371062644,-157962.87211848,0.00033641,120]
[381855644,1756371062653,-2343.41248336,0.00033641,14]
[381855645,1756371062664,-146620.53681217,0.00033641,120]
[381855646,1756371062908,-350508.57364524,0.00033641,120]
[381855647,1756371062918,-94291.50006841,0.00033641,120]
[381855648,1756371062927,-5228.98806964,0.00033641,14]
[381855649,1756371062937,-75806.59963818,0.00033641,120]
[381855650,1756371062946,-125248.4154201,0.00033641,120]
[381855651,1756371062955,-15301.22759891,0.00033641,120]
[381855652,1756371062965,-5100.0,0.00033641,36]
[381855653,1756371062974,-543359.35429523,0.00033641,120]
[381855654,1756371062983,-122808.81399753,0.00033641,60]
[381855655,1756371062992,-624.31692017,0.00033641,14]
[381855656,1756371063001,-150.0,0.00033641,14]
[381855658,1756371063012,-4601.7353822,0.00033641,30]
[381855659,1756371063021,-192.10714965,0.00033641,30]
[381855660,1756371063031,-500.0,0.00033641,120]
[381855661,1756371063042,-265.45019529,0.00033641,120]
[381855662,1756371063052,-45121.16565608,0.00033641,120]
[381855663,1756371063062,-5999.99999901,0.00033641,120]
[381855664,1756371063071,-999.999999,0.00033641,120]
[381855665,1756371063082,-161.0,0.00033641,120]
[381855666,1756371063092,-21835.74131903,0.00033641,120]
[381855667,1756371063102,-29539.2567509,0.00033641,30]
[381855668,1756371063112,-166.26085948,0.00033641,60]
[381855669,1756371063121,-151.9397373,0.00033641,60]
[381855670,1756371063131,-150.90357126,0.00033641,120]
[381855671,1756371063141,-181.41025584,0.00033641,120]
[381855672,1756371063157,-162.27624456,0.00033641,30]
[381855673,1756371063168,-1372.76958289,0.00033641,30]
[381855674,1756371063178,-179.41421418,0.00033641,120]
[381855675,1756371063187,-15465.97147476,0.00033641,15]
[381855676,1756371063197,-161.0,0.00033641,120]
[381855677,1756371063207,-504.33394179,0.00033641,120]
[381855678,1756371063219,-810880.0,0.00033641,60]
[381855679,1756371063229,-2000.0,0.00033641,120]
[381855680,1756371063240,-31855.06168217,0.00033641,120]
[381855681,1756371063249,-164.3,0.00033641,2]
[381855683,1756371063259,-972.0,0.00033641,30]
[381855684,1756371063268,-2835.0,0.00033641,60]
[381855685,1756371063278,-2787.56896743,0.00033641,120]
[381855687,1756371063288,-1086.0,0.00033641,30]
[381855688,1756371063297,-1084.39098877,0.00033641,30]
[381855689,1756371063307,-1086.0,0.00033641,30]
[381855690,1756371063316,-2016.79068295,0.00033641,120]
[381855691,1756371063326,-50000.0,0.00033641,34]
[381855692,1756371063335,-32901.88,0.00033641,60]
[381855693,1756371063344,-1000.0,0.00033641,120]
[381855694,1756371063354,-163.41432559,0.00033641,2]
[381855695,1756371063363,-394.92970341,0.00033641,2]
[381855696,1756371063373,-570.62226019,0.00033641,5]
[381855697,1756371063382,-203893.22103473,0.00033641,2]
[381855698,1756371063391,-123234.23066595,0.00033641,2]
[381855699,1756371063400,-1210.0,0.00033641,2]
[381855700,1756371063410,-710.54190341,0.00033641,2]
[381855701,1756371063419,-365.87932652,0.00033641,2]
[381855702,1756371063429,-2012.751073,0.00033641,5]
[381855703,1756371063439,-720.0018368,0.00033641,10]
[381855704,1756371063449,-351.87434112,0.00033641,2]
[381855705,1756371063459,-628.97988971,0.00033641,6]
[381855706,1756371063470,-1047.00831476,0.00033641,15]
[381855707,1756371063480,-6677.4186564,0.00033641,2]
[381855708,1756371063489,-1535.87248143,0.00033641,2]
[381855709,1756371063499,-1040.15184211,0.00033641,2]
[381855710,1756371063509,-5236.12076343,0.00033641,2]
[381855711,1756371063527,-540.22681315,0.00033641,7]
[381855712,1756371063539,-350.09172381,0.00033641,2]
[381855713,1756371063548,-2478.9059978,0.00033641,2]
[381855714,1756371063559,-300.0,0.00033641,15]
[381855715,1756371063568,-2731.17802511,0.00033641,2]
[381855716,1756371063581,-218451.52808617,0.00033641,2]
[381855717,1756371063590,-152.86852684,0.00033641,2]
[381855718,1756371063600,-1694.69652281,0.00033641,2]
[381855720,1756371063609,-990.37420489,0.00033641,5]
[381855721,1756371063619,-251.70728794,0.00033641,2]
[381855722,1756371063629,-166.11884026,0.00033641,2]
[381855723,1756371063639,-659.94289476,0.00033641,2]
[381855724,1756371063648,-1274.33428113,0.00033641,2]
[381855725,1756371063658,-245.85536252,0.00033641,2]
[381855726,1756371063667,-7795.04195214,0.00033641,2]
[381855727,1756371063676,-109902.50541492,0.00033641,2]
[381855728,1756371063686,-1052.30557451,0.00033641,2]
[381855729,1756371063695,-600.0,0.00033641,5]
[381855730,1756371063704,-550.88638323,0.00033641,2]
[381855731,1756371063714,-9324.66816616,0.00033641,2]
[381855732,1756371063723,-1324.73052458,0.00033641,2]
[381855733,1756371063732,-1000.0,0.00033641,10]
[381855734,1756371063743,-3453.30922392,0.00033641,2]
[381855735,1756371063752,-8114.48912657,0.00033641,2]
[381855736,1756371063761,-2218.03019587,0.00033641,2]
[381855737,1756371063771,-673.0,0.00033641,120]
[381855738,1756371063781,-23032.60949757,0.00033641,2]
[381855739,1756371063790,-12956.91919804,0.00033641,2]
[381855740,1756371063800,-1939.39429596,0.00033641,2]
[381855741,1756371063809,-185.95480076,0.00033641,2]
[381855743,1756371063818,-5069.17848959,0.00033641,2]
[381855744,1756371063828,-643.0,0.00033641,2]
[381855745,1756371063837,-100003.66775524,0.00033641,2]
[381855746,1756371063848,-980.33586654,0.00033641,2]
[381855747,1756371063858,-1590.5097929,0.00033641,2]
[381855748,1756371063867,-500.0,0.00033641,10]
[381855749,1756371063877,-188.0,0.00033641,60]
[381855750,1756371063886,-396.0,0.00033641,60]
[381855751,1756371063895,-578.81579122,0.00033641,2]
[381855752,1756371063905,-395.0,0.00033641,60]
[381855753,1756371063914,-497.0,0.00033641,120]
[381855754,1756371063923,-1042.13155737,0.00033641,30]
[381855755,1756371063933,-1853.86425672,0.00033641,2]
[381855756,1756371063943,-15074.93558307,0.00033641,2]
[381855757,1756371063953,-3273.26326139,0.00033641,2]
[381855758,1756371063962,-177.14038035,0.00033641,2]
[381855759,1756371063972,-497.7925597,0.00033641,120]
[381855760,1756371063982,-252.64924749,0.00033641,120]
[381855761,1756371063991,-159.67726732,0.00033641,2]
[381855762,1756371064001,-550.0,0.00033641,2]
[381855763,1756371064011,-1480.88877234,0.00033641,2]
[381855764,1756371064022,-10000.0,0.00033641,2]
[381855765,1756371064031,-1018.37737752,0.00033641,2]
[381855766,1756371064041,-1052.69346684,0.00033641,7]
[381855767,1756371064051,-1044.00459127,0.00033641,30]
[381855768,1756371064060,-10802.39719116,0.00033641,2]
[381855769,1756371064069,-171486.91055645,0.00033641,2]
[381855770,1756371064079,-928.78520992,0.00033641,120]
[381855771,1756371064088,-15080.17040106,0.00033641,2]
[381855772,1756371064097,-616.06306721,0.00033641,120]
[381855773,1756371064108,-231.29357732,0.00033641,2]
[381855774,1756371064117,-175.53289902,0.00033641,2]
[381855775,1756371064127,-493.0167787,0.00033641,3]
[381855776,1756371064135,-6000.0,0.00033641,2]
[381855777,1756371064145,-379.22972927,0.00033641,2]
[381855778,1756371064154,-1484.80127615,0.00033641,2]
[381855779,1756371064163,-1043.9971273,0.00033641,2]
[381855780,1756371064172,-471.95075174,0.00033641,7]
[381855781,1756371064182,-1189.12601199,0.00033641,2]
[381855782,1756371064193,-15200.15891822,0.00033641,2]
[381855783,1756371064204,-3085.4363279,0.00033641,2]
[381855784,1756371064213,-568.91302939,0.00033641,2]
[381855785,1756371064223,-150.0,0.00033641,2]
[381855786,1756371064232,-3356.36715417,0.00033641,2]
[381855787,1756371064242,-795.35452969,0.00033641,120]
[381855788,1756371064251,-230.21382325,0.00033641,14]
[381855789,1756371064261,-7843.95108751,0.00033641,2]
[381855790,1756371064271,-632.7223301,0.00033641,2]
[381855791,1756371064280,-221.83806541,0.00033641,5]
[381855792,1756371064289,-216.91112558,0.00033641,2]